Cogmind - Beta 11 @@@ ROGUE MODE // 2022.03.30 @ 15:09:19 Player: albenzo Result: Destroyed by S-43 Plague with Heavy Machine Gun Performance ------------- Evolutions (7) 3500 Regions Visited (9) 1800 Robots Destroyed (133) 665 Value Destroyed (6247) 6247 Prototype IDs (12) 240 Alien Tech Used (0) 0 Bonus (194) 194 TOTAL SCORE: 12646 Bonus ------- High Alert Combat Kills 311 Follower Combat Kills 48 Friendly Fire -165 Cogmind --------- Core Integrity 0/1300 Matter 69/300 Energy 82/100 System Corruption 41% Temperature Cool (0) Movement Core (50) Location -3/Research Parts ------- > --- POWER (1) -------- (None) > --- PROPULSION (7) --- (None) > --- UTILITY (9) ------ (None) > --- WEAPON (4) ------- (None) > --- INVENTORY (5) ---- Light Antimatter Reactor Medium Storage Unit Peak State ------------ > --- POWER ------------ Antimatter Reactor > --- PROPULSION ------- Heavy Treads Biometal Medium Treads Advanced Heavy Treads Advanced Heavy Treads > --- UTILITY ---------- Advanced Heat Sink Advanced Heat Sink Advanced Heat Sink Medium Storage Unit Advanced Signal Interpreter Advanced Target Analyzer Advanced Target Analyzer Improved Weapon Cycler Improved Focal Shield > --- WEAPON ----------- Gamma Rifle Gamma Rifle Gamma Rifle Railgun > --- INVENTORY -------- Light Antimatter Reactor Light Particle Reactor Biometal Leg Advanced Heat Sink Advanced Coolant Injector Improved Transmission Jammer Tesla Rifle Gamma Rifle High-powered Shotgun Mini Smartbomb Launcher [Rating: 143] Favorites ----------- Power Antimatter Reactor Engine Improved Ion Engine Power Core Enhanced Nuclear Core Reactor Antimatter Reactor Propulsion Armored Huge Wheel Treads Light Treads Leg Improved Carbon-fiber Leg Wheel Armored Huge Wheel Flight Unit VTOL Module Utility Advanced Heat Sink Device Advanced Heat Sink Storage Huge Storage Unit Processor Advanced Target Analyzer Hackware Advanced System Shield Protection Improved Medium Armor Plating Weapon Field Laser Energy Gun Field Laser Energy Cannon Advanced Beam Cannon Ballistic Gun Gauss Rifle Ballistic Cannon Mass Driver Launcher Mini Smartbomb Launcher Special Weapon Improved Plasma Cutter Slashing Weapon Greatsword Piercing Weapon Plasma Lance Build | -11 -10 -9 -8 -7 -6 -5 -5 -4 -3 ------- Run | Scr Mat Mat Mat Fac Fac Fac Ext Fac Res Slots Evolved 14 | . . 2 2 2 2 2 . 2 2 Power . | . . . . . . . . . . Propulsion 5 | . . . 2 . . . . 2 1 Utility 7 | . . . . 2 2 2 . . 1 Weapon 2 | . . 2 . . . . . . . Parts Attached 182 | 6 6 15 6 25 6 2 34 28 54 Power 17 | 1 2 1 . 5 . . 3 3 2 Engine 8 | 1 2 1 . 3 . . 1 . . Core 5 | . . . . 2 . . 2 1 . Reactor 4 | . . . . . . . . 2 2 Propulsion 35 | 2 . 3 5 2 . . 6 7 10 Treads 17 | 2 . 1 3 . . . . 1 10 Leg 5 | . . . . . . . 4 1 . Wheel 9 | . . 2 2 2 . . 2 1 . Hover . | . . . . . . . . . . Flight 4 | . . . . . . . . 4 . Utility 72 | 1 2 7 . 10 5 2 13 9 23 Device 43 | . 2 5 . 5 4 1 4 6 16 Storage 7 | 1 . 1 . . . . 2 1 2 Processor 7 | . . . . 2 . . 1 1 3 Hackware 2 | . . . . . . . 2 . . Protection 13 | . . 1 . 3 1 1 4 1 2 Artifact . | . . . . . . . . . . Weapon 58 | 2 2 4 1 8 1 . 12 9 19 Energy Gun 26 | 2 2 4 1 6 1 . 2 . 8 Energy Cannon 5 | . . . . 1 . . 2 1 1 Ballistic Gun 12 | . . . . . . . . 7 5 Ballistic Cannon 2 | . . . . . . . 1 . 1 Launcher 5 | . . . . 1 . . 1 . 3 Special Weapon 2 | . . . . . . . 1 . 1 Impact Weapon . | . . . . . . . . . . Slashing Weapon 5 | . . . . . . . 5 . . Piercing Weapon 1 | . . . . . . . . 1 . Special Melee Weapon . | . . . . . . . . . . Unidentified Prototypes 6 | . . . . 2 . . . 1 3 Corrupted Parts 5 | . . . . 1 . . . 1 3 System Corruption 16 | . . . . 1 . . . 2 13 Parts Lost 70 | . 2 . 1 6 . . 32 2 27 Power 7 | . 1 . . 1 . . 3 . 2 Propulsion 13 | . . . . . . . 7 1 5 Utility 24 | . . . . 1 . . 12 . 11 Weapon 26 | . 1 . 1 4 . . 10 1 9 Highest Loss Streak 16 | . 2 . 1 2 . . 15 1 16 To Critical Strikes . | . . . . . . . . . . Average Slot Usage (%) 85 | . 98 99 85 83 86 88 75 80 81 Engine 3 | . 14 11 9 2 . . . . . Core 1 | . . . . 4 6 5 4 2 . Reactor 1 | . . . . . . . . 2 3 Treads 9 | . 28 16 8 . . . . 2 18 Wheel 7 | . . 5 13 14 13 11 9 3 1 Device 14 | . 13 10 9 11 19 23 14 21 18 Storage 7 | . 14 11 9 7 6 5 10 1 3 Processor 4 | . . . . 3 6 5 . 8 10 Protection 4 | . . . . 6 6 11 7 2 4 Energy Gun 19 | . 26 43 36 25 26 23 11 . 5 Energy Cannon 1 | . . . . 4 . . . 2 . Ballistic Gun 3 | . . . . . . . . 14 9 Naked Turns 18 | . . . . . . . . . 18 Heaviest Build 136 | 12 13 101 101 112 118 123 136 50 74 Greatest Support 245 | 40 40 40 80 56 56 56 72 28 245 Greatest Overweight (x) 10 | . . 10 3 1 2 2 3 4 1 Average Overweight (x) 1 | . . 5 1 1 2 2 1 . . Largest Inventory Capacity 25 | 8 8 25 25 25 25 25 25 5 10 Average Capacity 17 | 6 8 20 25 25 25 25 24 5 9 Most Carried 25 | 6 8 25 25 25 25 25 25 5 10 Average Carried 16 | 3 7 16 24 24 23 24 21 3 8 Final Capacity 25 | 8 8 25 25 25 25 25 5 5 5 Final Carried 25 | 6 7 25 24 24 24 25 5 5 2 Class Distribution -------------------- 31% | Scavenger-Tank 17% | Scavenger-Gunner 16% | Gunner 15% | Mutant 10% | Tank 3% | Scavenger-Mutant Dominant Class ---------------- Mutant | -10/Materials Gunner | -9/Materials Gunner | -8/Materials Tank | -7/Factory Scavenger-Tank | -6/Factory Scavenger-Tank | -5/Factory Mutant | -5/Extension Scavenger-Skirmisher | -4/Factory Scavenger-Gunner | -3/Research Resources | -11 -10 -9 -8 -7 -6 -5 -5 -4 -3 ----------- Run | Scr Mat Mat Mat Fac Fac Fac Ext Fac Res Matter Collected 3094 | 248 57 243 88 270 70 20 191 300 1607 Remotely 22 | . 22 . . . . . . . . Salvage Created 6517 | . 320 315 706 792 137 89 606 329 3223 Parts 304 | . 19 19 23 36 6 4 19 22 156 Haulers Intercepted 1 | . . . . . . . . . 1 Recyclers Shooed 9 | . 1 . . 4 . . 2 . 2 Parts Field Recycled . | . . . . . . . . . . Retrieved Matter . | . . . . . . . . . . Parts Self-Destructed . | . . . . . . . . . . Prevented . | . . . . . . . . . . Kills | -11 -10 -9 -8 -7 -6 -5 -5 -4 -3 ------- Run | Scr Mat Mat Mat Fac Fac Fac Ext Fac Res Combat Hostiles Destroyed 111 | . 11 6 12 20 3 3 10 8 38 Melee 4 | . . . . . . . 4 . . Guns 86 | . 11 6 12 16 3 2 4 8 24 Cannons 3 | . . . . 1 . . 1 . 1 AOE 13 | . . . . 3 . . . . 10 Classes Destroyed 12 | . 2 2 3 1 . . 1 . 3 Worker 5 | . . . 1 . . . . . 4 Builder 5 | . . . . . . . . . 5 Hauler 1 | . . . . . . . . . 1 Recycler 6 | . . . 1 1 . . . . 4 Operator 1 | . . 1 . . . . . . . Watcher 3 | . . . . . . . . . 3 Swarmer 22 | . 6 . . 6 . 2 3 5 . Grunt 40 | . 5 3 9 8 2 . 1 . 12 Sentry 15 | . . 3 1 3 . . 4 1 3 Hunter 10 | . . . 2 1 . 1 . . 6 Programmer 22 | . . . . 2 1 . . 2 17 Behemoth 1 | . . . . . . . 1 . . Thug 1 | . . . . . . . 1 . . Guerrilla 1 | . . . . . . . 1 . . Best Kill Streak 12 | . 3 3 5 3 2 2 4 5 12 Combat Bots Only 8 | . 3 3 4 3 2 2 4 5 8 Max Kills in Single Turn 5 | . 1 1 1 3 1 1 2 1 5 Gunslinging 1 | . . . . . . . . . 1 Exploded 3 | . . . . 3 . . . . 3 Melee 1 | . . . . . . . 1 . . Uniques/NPCs Destroyed . | . . . . . . . . . . Combat | -11 -10 -9 -8 -7 -6 -5 -5 -4 -3 -------- Run | Scr Mat Mat Mat Fac Fac Fac Ext Fac Res Damage Taken 15181 | . 494 156 700 1181 139 249 4482 518 7262 Core 2417 | . 105 13 79 104 . . 716 84 1316 Absorbed by Shields 35 | . . . . . . . 35 . . Reduced by Siege Mode 310 | . . . . . . . . . 310 Redirected to Shielding 51 | . . . . . . . 51 . . Regen/Repaired (Parts) 447 | . . . . 314 . . . 133 . Core Remaining (%) 80 | 100 58 96 85 85 100 . 28 92 . Volleys Fired 296 | . 42 11 23 38 6 6 38 18 114 Largest 4 | . 2 4 4 4 4 4 4 4 4 Hottest 305 | . 80 252 252 290 294 294 305 160 260 Shots Fired 886 | . 75 45 92 129 24 24 120 47 330 Gun 806 | . 75 45 92 110 24 24 97 46 293 Cannon 58 | . . . . 18 . . 23 1 16 Launcher 15 | . . . . 1 . . . . 14 Special 7 | . . . . . . . . . 7 Kinetic 228 | . . . . . . . . 46 182 Thermal 558 | . 75 45 92 128 24 24 120 . 50 Explosive 14 | . . . . . . . . . 14 Electromagnetic 86 | . . . . 1 . . . 1 84 Robot Hit Streak 35 | . 7 13 10 12 13 7 12 10 35 Robot Miss Streak 7 | . 2 3 3 7 2 5 2 1 3 Penetration Max 2 | . . . . . . . . . 2 Secondary Targets 8 | . 1 . 2 . . . . . 5 Max Gunslinging Chain 1 | . 1 . 1 . . . . . 1 Shots Hit Robots 624 | . 52 25 57 86 19 11 90 31 253 Core Hits 320 | . 17 11 26 70 16 5 32 14 129 Critical Kills 10 | . . . . . . . . 2 8 Critical Parts Destroyed 12 | . . . . . . . . 1 11 Critical Strikes 39 | . . 1 6 . . . . 3 29 Burn 7 | . . 1 6 . . . . . . Destroy 22 | . . . . . . . . 3 19 Corrupt 9 | . . . . . . . . . 9 Sever 1 | . . . . . . . . . 1 Melee Attacks 21 | . . . . . . . 21 . . Impact . | . . . . . . . . . . Slashing 21 | . . . . . . . 21 . . Piercing . | . . . . . . . . . . Sneak Attacks . | . . . . . . . . . . Combat Hostiles . | . . . . . . . . . . Follow-up Attacks 2 | . . . . . . . 2 . . Damage Inflicted 15817 | . 579 425 1042 1762 384 208 2640 539 8238 Guns 11478 | . 579 425 1042 1361 384 208 1640 524 5315 Cannons 1257 | . . . . 132 . . 534 15 576 Explosions 2471 | . . . . 249 . . . . 2222 Melee 466 | . . . . . . . 466 . . Ramming 80 | . . . . 20 . . . . 60 Kinetic 4063 | . . . . . . . . 524 3539 Thermal 7946 | . 579 425 1042 1729 384 208 2174 . 1405 Explosive 2011 | . . . . . . . . . 2011 Electromagnetic 1251 | . . . . 13 . . . 15 1223 Impact . | . . . . . . . . . . Slashing 466 | . . . . . . . 466 . . Piercing . | . . . . . . . . . . Highest Corruption 41 | . . 4 . 4 . . . 3 41 Average Corruption 9 | . . 3 . 3 . . . 2 15 Corruption Purged . | . . . . . . . . . . Corruption Blocked . | . . . . . . . . . . Effects 128 | . . 20 . 17 . . . 6 85 Message Errors 30 | . . 5 . 4 . . . 2 19 Matter Fused 32 | . . 6 . 7 . . . 1 18 Heat Flow Errors 7 | . . 1 . 1 . . . . 5 Energy Discharges 22 | . . 3 . 3 . . . 3 13 Parts Rejected 2 | . . 1 . . . . . . 1 Data Loss (minor) 13 | . . 1 . 1 . . . . 11 Data Loss (major) 4 | . . 2 . . . . . . 2 Misfires 2 | . . 1 . . . . . . 1 Alerts 2 | . . . . 1 . . . . 1 Misdirections 8 | . . . . . . . . . 8 Weapon Failures 6 | . . . . . . . . . 6 Overload Shots . | . . . . . . . . . . Overflow Damage 26 | . . . . 20 . . 6 . . Projectiles . | . . . . . . . . . . Explosions 20 | . . . . 20 . . . . . Melee 6 | . . . . . . . 6 . . Knockbacks . | . . . . . . . . . . Impact . | . . . . . . . . . . Kinetic . | . . . . . . . . . . Secondary . | . . . . . . . . . . Self-Inflicted Damage 196 | . . . . 186 . . . . 10 Shots 5 | . . . . 4 . . . . 1 Rammed 9 | . . . . 1 . . . . 8 Targets Rammed 11 | . . . . 1 . . . . 10 Kicked . | . . . . . . . . . . Crushed 2 | . . . . . . . . . 2 Highest Temperature 463 | . 198 425 357 463 66 39 330 51 296 Average Temperature 111 | . 84 139 147 149 31 26 99 19 81 Received Heat Transfer 2374 | . 168 78 360 228 36 . 979 27 498 Effects 9 | . . 4 . 5 . . . . . Shutdowns 1 | . . . . 1 . . . . . Energy Bleed 1 | . . . . 1 . . . . . Interference 3 | . . 3 . . . . . . . Matter Decay 1 | . . 1 . . . . . . . Damage (minor) 1 | . . . . 1 . . . . . Damage (major) 2 | . . . . 2 . . . . . Siege Activations 5 | . . . . . . . . . 5 Total Turns 102 | . . . . . . . . . 102 Longest Duration 31 | . . . . . . . . . 31 Robots Corrupted 3 | . . . . . . . . . 3 Combat Hostiles 3 | . . . . . . . . . 3 Parts Fried 6 | . . . . . . . . . 6 Impact Corruptions . | . . . . . . . . . . Robots Melted 2 | . . . . . . 1 1 . . Combat Hostiles 2 | . . . . . . 1 1 . . Parts Melted 34 | . 2 3 10 7 1 4 6 . 1 Heat Transferred 14868 | . 1300 999 2738 3289 754 473 3724 . 1591 Parts Sabotaged . | . . . . . . . . . . Parts Stolen . | . . . . . . . . . . Parts Stripped . | . . . . . . . . . . Power Chain Reactions . | . . . . . . . . . . Missiles Intercepted . | . . . . . . . . . . Alert | -11 -10 -9 -8 -7 -6 -5 -5 -4 -3 ------- Run | Scr Mat Mat Mat Fac Fac Fac Ext Fac Res Peak Influence 792 | . 262 148 211 332 276 262 248 243 792 Initial 162 | . . 44 9 95 162 135 128 7 30 Average 161 | . 148 76 96 130 216 165 76 138 289 Maximum Alert Level 3 | . 1 . 1 1 1 1 1 1 3 Low Security (%) 68 | 100 65 100 95 80 36 86 92 62 30 Level 1 24 | . 34 . 4 19 63 13 7 37 44 Level 2 4 | . . . . . . . . . 17 Level 3 2 | . . . . . . . . . 8 Level 4 . | . . . . . . . . . . Level 5 . | . . . . . . . . . . High Security . | . . . . . . . . . . Max Security . | . . . . . . . . . . Squads Dispatched 27 | . 2 1 2 4 1 1 1 4 11 Investigation 2 | . . . . . . . . . 2 Extermination 9 | . . . . 2 1 . . 1 5 Reinforcement 13 | . 2 1 2 2 . 1 1 . 4 Assault . | . . . . . . . . . . Garrison 3 | . . . . . . . . 3 . Intercept . | . . . . . . . . . . Searches Triggered . | . . . . . . . . . . Construction Impeded 3 | . . . . . . . 1 . 2 Haulers Reinforced 1 | . . . . . . . . . 1 Active Scanning Responses . | . . . . . . . . . . Cargo Convoy Interrupts . | . . . . . . . . . . Stealth | -11 -10 -9 -8 -7 -6 -5 -5 -4 -3 --------- Run | Scr Mat Mat Mat Fac Fac Fac Ext Fac Res Distress Signals 13 | . . . 6 2 . . 2 . 3 Communications Jammed . | . . . . . . . . . . Distress Signals . | . . . . . . . . . . Times Spotted 205 | . 14 14 23 31 6 5 20 15 77 Peak Tracking Total 14 | . 3 3 5 5 3 4 8 5 14 Tactical Retreats 11 | . 1 . . 2 . 1 2 . 5 Traps | -11 -10 -9 -8 -7 -6 -5 -5 -4 -3 ------- Run | Scr Mat Mat Mat Fac Fac Fac Ext Fac Res Traps Triggered 11 | . 1 2 . 5 . . . . 3 Indirectly . | . . . . . . . . . . Trap Hack Attempts . | . . . . . . . . . . Triggered . | . . . . . . . . . . Disarmed . | . . . . . . . . . . Reprogrammed . | . . . . . . . . . . Reused . | . . . . . . . . . . Traps Extracted . | . . . . . . . . . . Installed . | . . . . . . . . . . Triggered . | . . . . . . . . . . Machines | -11 -10 -9 -8 -7 -6 -5 -5 -4 -3 ---------- Run | Scr Mat Mat Mat Fac Fac Fac Ext Fac Res Machines Disabled 9 | . . 1 1 4 . . 1 . 2 Max in Single Turn 4 | . . 1 1 4 . . . . 1 Machines Sabotaged . | . . . . . . . . . . Garrisons Compromised . | . . . . . . . . . . Overloaded Fab Kills . | . . . . . . . . . . Hacking | -11 -10 -9 -8 -7 -6 -5 -5 -4 -3 --------- Run | Scr Mat Mat Mat Fac Fac Fac Ext Fac Res Machines Accessed 41 | . 3 4 3 14 6 . 2 3 6 Terminals 27 | . 2 3 2 8 4 . 2 2 4 Fabricators 3 | . . . . 1 1 . . . 1 Repair Stations 3 | . . . . 2 . . . 1 . Recycling Units 2 | . 1 . . 1 . . . . . Scanalyzers 5 | . . 1 1 1 1 . . . 1 Garrison Access 1 | . . . . 1 . . . . . Total Hacks 92 | . 5 11 7 33 13 . 4 9 10 Successful 45 | . 3 6 6 15 8 . 2 3 2 Failed 47 | . 2 5 1 18 5 . 2 6 8 Catastrophic 15 | . 2 1 1 5 1 . . 1 4 Database Lockouts . | . . . . . . . . . . Manual 33 | . 4 1 3 15 7 . . . 3 Terminals 57 | . 4 8 5 18 7 . 4 4 7 Fabricators 5 | . . . . 1 2 . . . 2 Repair Stations 12 | . . . . 7 . . . 5 . Recycling Units 2 | . 1 . . 1 . . . . . Scanalyzers 13 | . . 3 2 3 4 . . . 1 Garrison Access 3 | . . . . 3 . . . . . Terminal Hacks 24 | . 3 4 4 6 2 . 2 1 2 Record 1 | . . . . . . . . . 1 Part Schematic 4 | . 1 1 2 . . . . . . Prototype ID Bank 3 | . . 1 . 2 . . . . . Open Door 2 | . . . . . . . 2 . . Branch Access Points 3 | . . 1 . . 1 . . . 1 Alert Level 7 | . 1 1 1 2 1 . . 1 . Unreport Threat 1 | . . . . 1 . . . . . Locate Traps 3 | . 1 . 1 1 . . . . . Fabricator Hacks . | . . . . . . . . . . Repair Station Hacks 7 | . . . . 5 . . . 2 . Scan Component 4 | . . . . 3 . . . 1 . Repair 3 | . . . . 2 . . . 1 . Recycling Unit Hacks . | . . . . . . . . . . Scanalyzer 10 | . . 2 2 2 4 . . . . Insert Component 5 | . . 1 1 1 2 . . . . Analyze 5 | . . 1 1 1 2 . . . . Garrison Access Hacks . | . . . . . . . . . . Unauthorized Hacks 4 | . . . . 2 2 . . . . Terminals 1 | . . . . . 1 . . . . Assimilate 1 | . . . . . 1 . . . . Fabricators 2 | . . . . 1 1 . . . . Fabnet 2 | . . . . 1 1 . . . . Repair Stations . | . . . . . . . . . . Recycling Units . | . . . . . . . . . . Scanalyzers . | . . . . . . . . . . Garrison Access 1 | . . . . 1 . . . . . Watchers 1 | . . . . 1 . . . . . Data Cores Recovered . | . . . . . . . . . . Used . | . . . . . . . . . . Hacking Detections 37 | . 3 3 3 13 5 . 1 3 6 Full Trace Events 1 | . . . . . . . . . 1 Feedback Events . | . . . . . . . . . . Feedback Blocked . | . . . . . . . . . . Robot Schematics Acquired . | . . . . . . . . . . Robots Built . | . . . . . . . . . . Authchips . | . . . . . . . . . . Time . | . . . . . . . . . . Total Robot Build Rating . | . . . . . . . . . . Part Schematics Acquired 8 | . 1 2 3 1 1 . . . . Parts Built . | . . . . . . . . . . Authchips . | . . . . . . . . . . Time . | . . . . . . . . . . Total Part Build Rating . | . . . . . . . . . . Parts Repaired 3 | . . . . 2 . . . 1 . Time 132 | . . . . 88 . . . 44 . Parts Recycled . | . . . . . . . . . . Recycled Matter . | . . . . . . . . . . Retrieved Matter . | . . . . . . . . . . Retrieved Components . | . . . . . . . . . . Parts Scanalyzed 5 | . . 1 1 1 2 . . . . Part Schematics Acquired 4 | . . 1 1 1 1 . . . . Parts Damaged . | . . . . . . . . . . Bothacking | -11 -10 -9 -8 -7 -6 -5 -5 -4 -3 ------------ Run | Scr Mat Mat Mat Fac Fac Fac Ext Fac Res Used RIF Installer . | . . . . . . . . . . Robots Hacked 1 | . . . . . . 1 . . . Non-combat . | . . . . . . . . . . Combat 1 | . . . . . . 1 . . . Robot Hacks Applied . | . . . . . . . . . . Relay Couplers Released . | . . . . . . . . . . Fabnet Peak Effective % 4 | . . . . . 3 4 4 1 . Autooverrided 1 | . . . . . . 1 . . . Robots Rewired 3 | . . . . . . . 3 . . Allies Hacked . | . . . . . . . . . . Hacks Repelled . | . . . . . . . . . . Allies | -11 -10 -9 -8 -7 -6 -5 -5 -4 -3 -------- Run | Scr Mat Mat Mat Fac Fac Fac Ext Fac Res Total Allies 7 | . . . . . 1 1 5 . . Largest Group 4 | . . . . . 1 1 4 . . Highest-Rated Group 123 | . . . . . 26 12 123 . . Highest-Rated Ally 39 | . . . . . 26 12 39 . . Total Orders . | . . . . . . . . . . Ally Attacks 19 | . . . . . . 4 15 . . Total Damage 316 | . . . . . . 40 276 . . Kills 1 | . . . . . . . 1 . . Allies Corrupted . | . . . . . . . . . . Allies Melted . | . . . . . . . . . . Intel | -11 -10 -9 -8 -7 -6 -5 -5 -4 -3 ------- Run | Scr Mat Mat Mat Fac Fac Fac Ext Fac Res Robot Analysis Total . | . . . . . . . . . . Derelict Logs Recovered . | . . . . . . . . . . Drone Launches . | . . . . . . . . . . Drone Recoveries . | . . . . . . . . . . Exploration | -11 -10 -9 -8 -7 -6 -5 -5 -4 -3 ------------- Run | Scr Mat Mat Mat Fac Fac Fac Ext Fac Res Turns Passed 7902 | 86 512 943 595 1435 373 296 1094 502 2066 Spaces Moved 4230 | 47 214 366 325 828 249 181 609 328 1083 Core 95 | 3 . . . . . . . 2 90 Treads 1280 | 44 214 177 56 . . . . 16 773 Legs 99 | . . . . . . . 71 28 . Wheels 2658 | . . 189 269 828 249 181 538 184 220 Hover . | . . . . . . . . . . Flight 98 | . . . . . . . . 98 . Fastest Speed 26 | 50 160 160 115 115 130 130 115 26 50 Average Speed 135 | 152 160 222 136 115 130 130 133 95 132 Slowest Speed 320 | 160 160 320 320 115 130 130 260 275 155 Overloaded Moves . | . . . . . . . . . . Propulsion Burnouts . | . . . . . . . . . . Robots Hopped . | . . . . . . . . . . Cave-ins Triggered . | . . . . . . . . . . Exploration Rate (%) 22 | 4 37 36 24 20 8 6 60 7 23 Regions Visited 9 Branch Regions 1 Pre-discovered Areas . | . . . . . . . . . . Known Exits Taken 3 | . . . . 1 1 1 . . . Unknown Exits Taken 6 | 1 1 1 1 . . . 1 1 . Scrap Searched . | . . . . . . . . . . Spaces Dug 12 | . . . . . . . . . 12 Terrain Destroyed 79 | . . . . 10 . . . 1 68 Melee . | . . . . . . . . . . Projectile 10 | . . . . . . . . 1 9 AOE 67 | . . . . 10 . . . . 57 Terrain Rammed . | . . . . . . . . . . Walls Destroyed . | . . . . . . . . . . Machines Disabled . | . . . . . . . . . . Actions | -11 -10 -9 -8 -7 -6 -5 -5 -4 -3 --------- Run | Scr Mat Mat Mat Fac Fac Fac Ext Fac Res Total 5784 | 58 309 475 423 1222 282 225 770 481 1539 Wait 775 | . 41 45 50 285 15 32 21 81 205 Move 4221 | 46 213 365 324 827 248 180 608 327 1083 Hop . | . . . . . . . . . . Pick Up 120 | 6 4 24 8 14 3 4 22 13 22 Fast Attach 63 | 6 3 4 2 8 . . 5 14 21 Attach 68 | . 2 . 3 8 2 2 26 9 16 Detach 16 | . . 1 . 1 . . 4 2 8 Swap 51 | . 1 11 1 9 4 . 3 5 17 Drop 113 | . 3 14 12 15 4 1 11 12 41 Fire 296 | . 42 11 23 38 6 6 38 18 114 Melee 18 | . . . . . . . 18 . . Ram 7 | . . . . 1 . . . . 6 Kick . | . . . . . . . . . . Crush 6 | . . . . . . . . . 6 Escape Stasis 16 | . . . . 16 . . . . . Rewire 14 | . . . . . . . 14 . . Trap . | . . . . . . . . . . Miscellaneous . | . . . . . . . . . . Route ------- -11/Scrapyard -10/Materials -9/Materials (discovered 5 exits: *Mat / *Min x2 / Sto x2) -8/Materials -7/Factory (discovered 2 exits: *Fac / *Low) -6/Factory (discovered 3 exits: *Fac / Low x2) -5/Factory -5/Extension (discovered 2 exits: *Fac / [*Cet]) -4/Factory -3/Research (discovered 3 exits: Arm / Qua x2) History --------- Turn | Location | Event 12 | -11/Scrapyard | Discovered new exit (range 15) 87 | -11/Scrapyard | Entered Materials 314 | -10/Materials | Build established: Mutant 359 | -10/Materials | Discovered new exit (range 15) 599 | -10/Materials | Entered another Materials area 599 | -9/Materials | Evolved 2 slots: Weapon x2 708 | -9/Materials | Discovered new exit (range 12) 1097 | -9/Materials | Build established: Gunner 1492 | -9/Materials | Discovered new exit (range 14) 1532 | -9/Materials | Identified exit to Mines 1532 | -9/Materials | Identified exit to Storage 1542 | -9/Materials | Entered another Materials area 1542 | -8/Materials | Evolved 2 slots: Propulsion x2 1893 | -8/Materials | Discovered new exit (range 10) 2137 | -8/Materials | Entered Factory 2137 | -7/Factory | Evolved 2 slots: Utility x2 2296 | -7/Factory | Repaired Arm. Huge Wheel 2341 | -7/Factory | Repaired Arm. Huge Wheel 2415 | -7/Factory | Discovered new exit (range 15) 2436 | -7/Factory | Build established: Scavenger-Tank 2850 | -7/Factory | Identified exit to Lower Caves 2870 | -7/Factory | Build established: Tank 3549 | -7/Factory | Discovered new exit (range 15) 3570 | -7/Factory | Identified exit to Factory 3572 | -7/Factory | Entered another Factory area 3572 | -6/Factory | Evolved 2 slots: Utility x2 3624 | -6/Factory | Identified exit to Lower Caves 3681 | -6/Factory | Build established: Scavenger-Tank 3938 | -6/Factory | Discovered new exit (range 6) 3943 | -6/Factory | Identified exit to Factory 3945 | -6/Factory | Entered another Factory area 3945 | -5/Factory | Evolved 2 slots: Utility x2 4188 | -5/Factory | Local machine network offline 4201 | -5/Factory | Discovered new exit (range 15) 4240 | -5/Factory | Identified exit to Extension 4241 | -5/Factory | Entered Extension 4283 | -5/Extension | Rescued a captive Derelict 4466 | -5/Extension | Rescued a captive Derelict 4651 | -5/Extension | Spotted B-75 Beast 4663 | -5/Extension | Spotted B-75 Beast 4784 | -5/Extension | Destroyed B-75 Beast 4827 | -5/Extension | Lost 15 parts (1p2n7u5w) 5171 | -5/Extension | Build established: Mutant 5224 | -5/Extension | Core integrity fell below 50% 5250 | -5/Extension | Lost 15 parts (2p3n5u5w) 5292 | -5/Extension | Discovered new exit (range 16) 5294 | -5/Extension | Discovered new exit (range 15) 5335 | -5/Extension | Entered Factory 5335 | -4/Factory | Evolved 2 slots: Propulsion x2 5497 | -4/Factory | Garrison activated, responded to threat 5568 | -4/Factory | Discovered new exit (range 15) 5737 | -4/Factory | Repaired Gauss Rifle 5837 | -4/Factory | Entered Research 5837 | -3/Research | Evolved 2 slots: Propulsion x1, Utility x1 6082 | -3/Research | Build established: Scavenger-Gunner 6123 | -3/Research | Found Prototype Launcher 6335 | -3/Research | Destroyed 8 combat bots 6493 | -3/Research | Build established: Scavenger-Tank 7015 | -3/Research | System corruption reached 10% 7022 | -3/Research | Build established: Scavenger-Gunner 7300 | -3/Research | System corruption reached 30% 7359 | -3/Research | Found Prototype Device 7359 | -3/Research | Identified Exp. Focal Shield 7508 | -3/Research | Identified exit to Armory 7508 | -3/Research | Identified exit to Quarantine 7577 | -3/Research | Identified Mni. Smartbomb Launcher 7687 | -3/Research | Lost 3 parts (2u1w) 7856 | -3/Research | Core integrity fell below 50% 7892 | -3/Research | Core integrity fell below 20% 7903 | -3/Research | Destroyed by S-43 Plague with Heavy Machine Gun Last Messages --------------- 07852_ Slug penetrates Sealed Blast Doors. 07854_ U-05 Engineer builds a Wall. 07855_ Slammed into U-05 Engineer. 07856_ Imp. Transmission Jammer broken. 07856_ Destabilizing: Short circuit. 07857_ U-05 Engineer lays Concrete. 07858_ System corrupted: Component data lost. 07858_ P-80 Master resets H-77 Assassin, system corruption cleaned. 07858_ U-05 Engineer lays Concrete. 07859_ Dropped Broken Imp. Transmission Jammer. 07860_ Dropped Corrupted Hpw. Shotgun. 07860_ Dropped Corrupted Railgun. 07863_ Slug penetrates Wall. 07869_ Adv. Heat Sink destroyed. 07879_ Adv. Signal Interpreter destroyed. 07881_ Slammed into P-80 Master. 07885_ Adv. Target Analyzer destroyed. 07889_ System corrupted: Energy discharge (-40). 07891_ P-80 Master resets S-43 Plague, system corruption cleaned. 07901_ Mni. Smartbomb Launcher destroyed. Map ----- +----------------------------------------------------+ | ?????????????????????????????????????????????????? | | ?????????????????????????????????????????????????? | | ?????????????????????????????????????????????????? | | ?????????????????????????????????????????????????? | | ????????????????????????????????????????????????? | | #???????????????????????????????????????????????? | | #???????????????????????????????????????????????? | | #???????????????????????????????????????????????? | | #???????????????????????????????????????????????? | | #???????????????????????????????????????????????? | | #?????????????########??????????????????????????? | | #?????????????# #??????????????????????????? | | #?????????????# #??????????????????????????? | | #?????????????# #??????????????????????????? | | #?????????????# #??????????????????????????? | | #?????????????# !! #??????????????????????????? | | #?????????????# !! #??????????????????????????? | | ############### #??????????????????????????? | | ## #??????????????????????????? | | ## #??????????????????????????? | | ^ ^ / #??????????????????????????? | | """"""" ## #??????????????????????????? | | """"""" ## #??????????????????????????? | | """"""" ## #??????????????????????????? | | ^ ######s######b##### #??????????????? | | s s @ g R #?????????????? | | g #?????????????? | | % k g k #?????????????? | | ""T" % A k R #?????????????? | | ###########+################### #?????????????? | | # #???????????????k #?????????????? | | # #???????????????? #?????????????? | | # """#??????????????????#?????????????? | | ] """# Y"#????????????????????????????????? | | """# """#????????????????????????????????? | | """# #????????????????????????????????? | | # #????????????????????????????????? | | # #????????????????????????????????? | | ####### = #????????????????????????????????? | | #?????# #????????????????????????????????? | | #?????# """ #????????????????????????????????? | | ??????# """ #????????????????????????????????? | | ??????# """ #????????????????????????????????? | | ??????# #????????????????????????????????? | | ??????# #????????????????????????????????? | | ####### #????????????????????????????????? | | ###+#######????????????????????????????????? | | #?# #??????????????????????????????????????? | | #?# #??????????????????????????????????????? | | #?#+########???????????????????????????????? | +----------------------------------------------------+ Best States ------------- Heat Dissipation 122 Coolant Potential 100 Energy Generation 23 Energy Capacity 1000 Matter Stores 300 Matter Capacity 300 Sight Range 16 Robot Scan Range 15 Terrain Scan Range 20 Terrain Scan Density 210 Armor Coverage 1650 Resistance: KI 30 Resistance: TH 30 Utility Shielding 33 Weapon Cycling 20 Evasion (%) 64 Target Analysis 12 Recoil Reduction 9 Offensive Hacking 12 Defensive Hacking 14 Item Schematics ----------------- Lrg. Storage Unit | -10/Materials | Hacked Rocket Launcher | -9/Materials | Hacked Datajack | -9/Materials | Scanalyzed Hrd. Medium Armor Plating | -8/Materials | Scanalyzed Arm. Wheel | -8/Materials | Hacked Field Laser | -8/Materials | Hacked Arm. Huge Wheel | -7/Factory | Scanalyzed Imp. Sensor Array | -6/Factory | Scanalyzed Robot Schematics ------------------ None Fabricated ------------ Nothing Alien Tech Used ----------------- None Achievements -------------- Turtlemind Challenges ------------ None Game ------ Seed PhysicsDimensionalJammer Manual? 0 Play Time 01:38:57 Cumulative 41.0 hours Start 2022.03.30 @ 12:57:12 End 2022.03.30 @ 15:09:19 Sessions 1 Manual Loads 0 Difficulty Rogue Special Mode None Game No. 31 Rogue 31 Adventurer 0 Explorer 0 Win Type - Total 1 Types 1/0/0/0/0/0/0/0/0 Lore% 48 Gallery% 48 Achievement% 46 Wizard Run 0 Options --------- ASCII 0 Keyboard 1 Movement Vi Keybinds 0 Fullscreen 2 Font 24/Proggy Map View 76x50 Tactical HUD 1 Map Filters NONE Filters NONE Steam 1 RUN: 4b18c079-a722-4f60-9246-44e8031e5e3f